[Event "*** SCC Grand Prix: Titled Tuesday Blitz"]
[Site "Chess.com"]
[Date "2020.08.25"]
[Round "3"]
[White "Gusarov91"]
[Black "tigra"]
[Result "1-0"]
[WhiteElo "2659"]
[BlackElo "2890"]
[TimeControl "180+1"]
[EndTime "10:30:37 PDT"]
[Termination "Gusarov91 won by checkmate"]

1. e4 {[%clk 0:03:00.9]} 1... c5 {[%clk 0:03:00.1]} 2. Nf3 {[%clk 0:03:00.8]}
2... d6 {[%clk 0:03:00.7]} 3. Bb5+ {[%clk 0:03:00.6]} 3... Nc6 {[%clk
0:03:00.1]} 4. O-O {[%clk 0:03:00]} 4... a6 {[%clk 0:02:59.9]} 5. Bxc6+ {[%clk
0:03:00]} 5... bxc6 {[%clk 0:03:00.8]} 6. Re1 {[%clk 0:02:58.7]} 6... g6 {[%clk
0:03:00.3]} 7. d3 {[%clk 0:02:53.1]} 7... e5 {[%clk 0:02:59.2]} 8. b3 {[%clk
0:02:50.5]} 8... Bg7 {[%clk 0:02:59.1]} 9. a4 {[%clk 0:02:49.2]} 9... Ne7 {[%clk
0:02:57.9]} 10. Na3 {[%clk 0:02:48.9]} 10... h6 {[%clk 0:02:56.3]} 11. Nc4
{[%clk 0:02:48.8]} 11... Be6 {[%clk 0:02:56]} 12. Nfd2 {[%clk 0:02:44.9]} 12...
O-O {[%clk 0:02:43.6]} 13. Bb2 {[%clk 0:02:45.2]} 13... g5 {[%clk 0:02:41.3]}
14. Nf1 {[%clk 0:02:34.6]} 14... f5 {[%clk 0:02:40.3]} 15. f3 {[%clk 0:02:33.5]}
15... a5 {[%clk 0:02:37.9]} 16. Bc3 {[%clk 0:02:22.6]} 16... fxe4 {[%clk
0:02:34.2]} 17. dxe4 {[%clk 0:02:12.7]} 17... Bxc4 {[%clk 0:02:30.5]} 18. bxc4
{[%clk 0:02:12.4]} 18... Nc8 {[%clk 0:02:29.6]} 19. Ne3 {[%clk 0:02:09.8]} 19...
Nb6 {[%clk 0:02:27.3]} 20. Qd2 {[%clk 0:02:08.4]} 20... Nc8 {[%clk 0:02:12.6]}
21. Red1 {[%clk 0:02:08]} 21... Re8 {[%clk 0:01:37]} 22. Rab1 {[%clk 0:02:07.3]}
22... Qc7 {[%clk 0:01:33.6]} 23. Nf5 {[%clk 0:02:06.1]} 23... Re6 {[%clk
0:01:34.2]} 24. Rb3 {[%clk 0:01:44.4]} 24... Bf8 {[%clk 0:01:13.7]} 25. Rdb1
{[%clk 0:01:42.2]} 25... Ra7 {[%clk 0:01:13.5]} 26. Rb8 {[%clk 0:01:36.5]} 26...
Re8 {[%clk 0:01:11.5]} 27. h4 {[%clk 0:01:27.1]} 27... gxh4 {[%clk 0:01:08.1]}
28. Nxh6+ {[%clk 0:01:23.8]} 28... Bxh6 {[%clk 0:01:07.6]} 29. Qxh6 {[%clk
0:01:22.9]} 29... Qh7 {[%clk 0:01:05.9]} 30. Qxh7+ {[%clk 0:01:17.7]} 30... Kxh7
{[%clk 0:01:04.4]} 31. R1b7+ {[%clk 0:01:17.5]} 31... Rxb7 {[%clk 0:01:03.3]}
32. Rxb7+ {[%clk 0:01:17.6]} 32... Kg6 {[%clk 0:01:04.2]} 33. Bxa5 {[%clk
0:01:17.5]} 33... Ne7 {[%clk 0:01:02.6]} 34. Bc7 {[%clk 0:01:12.2]} 34... Kf6
{[%clk 0:00:48.5]} 35. Bxd6 {[%clk 0:01:07.3]} 35... Ng6 {[%clk 0:00:48.6]} 36.
a5 {[%clk 0:01:02.9]} 36... Ra8 {[%clk 0:00:48]} 37. Bc7 {[%clk 0:01:03]} 37...
Nf4 {[%clk 0:00:46.9]} 38. Rb8 {[%clk 0:00:57.2]} 38... Ra7 {[%clk 0:00:44.1]}
39. Rf8+ {[%clk 0:00:32.9]} 39... Ke7 {[%clk 0:00:31.7]} 40. Rc8 {[%clk
0:00:32.7]} 40... Kf6 {[%clk 0:00:24.4]} 41. Rf8+ {[%clk 0:00:31.5]} 41... Ke7
{[%clk 0:00:21.1]} 42. Bb6 {[%clk 0:00:31.7]} 42... Rd7 {[%clk 0:00:20.1]} 43.
Bxc5+ {[%clk 0:00:31.5]} 43... Ke6 {[%clk 0:00:19.9]} 44. a6 {[%clk 0:00:28.6]}
44... Rd1+ {[%clk 0:00:19.5]} 45. Kh2 {[%clk 0:00:26.7]} 45... Rd2 {[%clk
0:00:20.4]} 46. Rg8 {[%clk 0:00:25.5]} 46... h3 {[%clk 0:00:20.3]} 47. a7 {[%clk
0:00:24.8]} 47... Nxg2 {[%clk 0:00:19.9]} 48. a8=Q {[%clk 0:00:18.3]} 48... Nf4+
{[%clk 0:00:20.8]} 49. Kg3 {[%clk 0:00:18]} 49... Rg2+ {[%clk 0:00:19.1]} 50.
Kh4 {[%clk 0:00:18.3]} 50... h2 {[%clk 0:00:19.7]} 51. Qxc6+ {[%clk 0:00:17.7]}
51... Kf7 {[%clk 0:00:19.6]} 52. Qe8+ {[%clk 0:00:16.9]} 52... Kf6 {[%clk
0:00:20]} 53. Qe7# {[%clk 0:00:17.4]} 1-0

[Event "*** SCC Grand Prix: Titled Tuesday Blitz"]
[Site "Chess.com"]
[Date "2020.08.25"]
[Round "3"]
[White "davigator"]
[Black "Jovidon91"]
[Result "1-0"]
[WhiteElo "2321"]
[BlackElo "2462"]
[TimeControl "180+1"]
[EndTime "10:30:39 PDT"]
[Termination "davigator won on time"]

1. e4 {[%clk 0:03:00.9]} 1... c5 {[%clk 0:02:58]} 2. Nf3 {[%clk 0:03:00.6]} 2...
e6 {[%clk 0:02:58.1]} 3. d4 {[%clk 0:03:00.9]} 3... cxd4 {[%clk 0:02:59]} 4.
Nxd4 {[%clk 0:03:01.2]} 4... Nc6 {[%clk 0:02:59.7]} 5. Nc3 {[%clk 0:03:00.9]}
5... Qc7 {[%clk 0:02:59.8]} 6. a3 {[%clk 0:03:00.5]} 6... Nf6 {[%clk 0:02:56.9]}
7. f4 {[%clk 0:03:00.1]} 7... a6 {[%clk 0:02:54.8]} 8. Be3 {[%clk 0:02:50.9]}
8... d6 {[%clk 0:02:45.2]} 9. Be2 {[%clk 0:02:46.1]} 9... Be7 {[%clk 0:02:45.5]}
10. O-O {[%clk 0:02:44.8]} 10... O-O {[%clk 0:02:45.7]} 11. Kh1 {[%clk
0:02:44.9]} 11... Nxd4 {[%clk 0:02:43.9]} 12. Qxd4 {[%clk 0:02:40.1]} 12... b5
{[%clk 0:02:43.4]} 13. Rae1 {[%clk 0:02:38.3]} 13... Bb7 {[%clk 0:02:43.6]} 14.
Bf3 {[%clk 0:02:37.8]} 14... Rac8 {[%clk 0:02:42.5]} 15. g4 {[%clk 0:02:31.2]}
15... Qc4 {[%clk 0:02:37.7]} 16. g5 {[%clk 0:02:28.6]} 16... Qxd4 {[%clk
0:02:34.2]} 17. Bxd4 {[%clk 0:02:27.8]} 17... Nd7 {[%clk 0:02:33.5]} 18. h4
{[%clk 0:02:22.6]} 18... Rc4 {[%clk 0:02:33.1]} 19. Rd1 {[%clk 0:02:18.3]} 19...
Rfc8 {[%clk 0:02:05.3]} 20. Rd2 {[%clk 0:02:12.8]} 20... Nf8 {[%clk 0:01:58.8]}
21. Kh2 {[%clk 0:02:06.4]} 21... b4 {[%clk 0:01:44.1]} 22. axb4 {[%clk
0:02:05.5]} 22... Rxb4 {[%clk 0:01:44]} 23. Nd1 {[%clk 0:02:02.1]} 23... Ng6
{[%clk 0:01:38.2]} 24. Kg3 {[%clk 0:02:01.3]} 24... e5 {[%clk 0:01:37.1]} 25.
fxe5 {[%clk 0:01:57.8]} 25... dxe5 {[%clk 0:01:37.1]} 26. Bc3 {[%clk 0:01:57.7]}
26... Rb5 {[%clk 0:01:31.2]} 27. Rd7 {[%clk 0:01:49.9]} 27... Bc6 {[%clk
0:01:19.9]} 28. Ra7 {[%clk 0:01:44.5]} 28... h6 {[%clk 0:00:53.1]} 29. h5 {[%clk
0:01:42.2]} 29... Bc5 {[%clk 0:00:50.8]} 30. Rxa6 {[%clk 0:01:40.6]} 30... Nf4
{[%clk 0:00:45.3]} 31. gxh6 {[%clk 0:01:39.4]} 31... gxh6 {[%clk 0:00:44.8]} 32.
Bg4 {[%clk 0:01:28.5]} 32... Ne6 {[%clk 0:00:36.3]} 33. Bxe5 {[%clk 0:01:22.7]}
33... Bb7 {[%clk 0:00:28.5]} 34. Rxe6 {[%clk 0:01:20.3]} 34... Bf8 {[%clk
0:00:20.1]} 35. Bf4 {[%clk 0:01:04.8]} 35... Rxc2 {[%clk 0:00:16.2]} 36. Re8
{[%clk 0:01:04.7]} 36... Bc6 {[%clk 0:00:15.9]} 37. Rd8 {[%clk 0:01:00.1]} 37...
Rb3+ {[%clk 0:00:15.6]} 38. Rf3 {[%clk 0:00:56.3]} 38... Rxf3+ {[%clk
0:00:07.5]} 39. Bxf3 {[%clk 0:00:56.1]} 39... Kg7 {[%clk 0:00:05.9]} 40. Be5+
{[%clk 0:00:55.6]} 40... f6 {[%clk 0:00:06.2]} 41. Bxf6+ {[%clk 0:00:55.6]}
41... Kf7 {[%clk 0:00:06.3]} 42. Bc3 {[%clk 0:00:53.3]} 42... Be7 {[%clk
0:00:06.2]} 43. Rd2 {[%clk 0:00:52.3]} 43... Rc1 {[%clk 0:00:05.3]} 44. Rf2
{[%clk 0:00:50.9]} 44... Ke8 {[%clk 0:00:03.6]} 45. Ne3 {[%clk 0:00:44]} 45...
Ba4 {[%clk 0:00:04.5]} 46. e5 {[%clk 0:00:42.3]} 46... Rg1+ {[%clk 0:00:03.6]}
47. Rg2 {[%clk 0:00:41.9]} 47... Re1 {[%clk 0:00:03.3]} 48. Nf5 {[%clk
0:00:41.6]} 48... Bg5 {[%clk 0:00:01.3]} 49. Re2 {[%clk 0:00:38.2]} 1-0

[Event "*** SCC Grand Prix: Titled Tuesday Blitz"]
[Site "Chess.com"]
[Date "2020.08.25"]
[Round "3"]
[White "EnergeticHay"]
[Black "carlsen1001"]
[Result "1-0"]
[WhiteElo "2201"]
[BlackElo "2408"]
[TimeControl "180+1"]
[EndTime "10:30:40 PDT"]
[Termination "EnergeticHay won by resignation"]

1. e4 {[%clk 0:03:00.9]} 1... c5 {[%clk 0:02:59.4]} 2. b4 {[%clk 0:03:00.1]}
2... cxb4 {[%clk 0:02:55.3]} 3. a3 {[%clk 0:02:59.8]} 3... b3 {[%clk 0:02:53.3]}
4. cxb3 {[%clk 0:02:59.3]} 4... d6 {[%clk 0:02:53.3]} 5. Nc3 {[%clk 0:02:58.5]}
5... Nf6 {[%clk 0:02:53.6]} 6. d4 {[%clk 0:02:57.3]} 6... Nc6 {[%clk 0:02:54.2]}
7. Nf3 {[%clk 0:02:51.4]} 7... g6 {[%clk 0:02:54.1]} 8. Be2 {[%clk 0:02:50.6]}
8... Bg7 {[%clk 0:02:54.1]} 9. O-O {[%clk 0:02:49.9]} 9... O-O {[%clk
0:02:54.2]} 10. h3 {[%clk 0:02:47.2]} 10... Bd7 {[%clk 0:02:53.5]} 11. Be3
{[%clk 0:02:45.8]} 11... Rc8 {[%clk 0:02:51.4]} 12. Rc1 {[%clk 0:02:44.4]} 12...
Qa5 {[%clk 0:02:45.5]} 13. b4 {[%clk 0:02:12.5]} 13... Qxa3 {[%clk 0:02:39.2]}
14. Nb5 {[%clk 0:02:12]} 14... Qxb4 {[%clk 0:02:10.3]} 15. Bd2 {[%clk
0:02:11.1]} 15... Qb2 {[%clk 0:02:10.5]} 16. Bc3 {[%clk 0:01:46.3]} 16... Qa2
{[%clk 0:02:09.2]} 17. Ra1 {[%clk 0:01:46]} 17... Qe6 {[%clk 0:02:08.9]} 18. Ng5
{[%clk 0:01:39.5]} 18... Nxe4 {[%clk 0:01:28.7]} 19. Nxe6 {[%clk 0:01:37.2]}
19... Nxc3 {[%clk 0:01:11.1]} 20. Nxc3 {[%clk 0:01:38.1]} 20... fxe6 {[%clk
0:01:10.6]} 21. Rc1 {[%clk 0:01:32.6]} 21... Nxd4 {[%clk 0:01:09.6]} 22. Bd3
{[%clk 0:01:28.2]} 22... e5 {[%clk 0:00:57.8]} 23. Nd5 {[%clk 0:01:25.2]} 23...
Rxc1 {[%clk 0:00:53.9]} 24. Qxc1 {[%clk 0:01:26.1]} 24... e4 {[%clk 0:00:40.7]}
25. Bc4 {[%clk 0:01:23.5]} 25... e6 {[%clk 0:00:39.2]} 26. Nc3 {[%clk
0:01:18.2]} 26... d5 {[%clk 0:00:39.1]} 27. Be2 {[%clk 0:01:12.6]} 27... Rc8
{[%clk 0:00:38]} 28. Bd1 {[%clk 0:01:08]} 28... Rxc3 {[%clk 0:00:35.7]} 29. Qf4
{[%clk 0:01:02.3]} 29... e5 {[%clk 0:00:20.1]} 30. Qg5 {[%clk 0:01:00.4]} 30...
Ne6 {[%clk 0:00:17.7]} 31. Qe7 {[%clk 0:00:59.6]} 31... Rc7 {[%clk 0:00:17]} 32.
Bg4 {[%clk 0:00:55]} 32... Nf8 {[%clk 0:00:14.9]} 33. Qd6 {[%clk 0:00:54.1]}
33... Rc6 {[%clk 0:00:13.7]} 34. Qxd5+ {[%clk 0:00:52.6]} 34... Be6 {[%clk
0:00:13.2]} 35. Qxe4 {[%clk 0:00:51]} 35... a5 {[%clk 0:00:09.8]} 36. Be2 {[%clk
0:00:48.2]} 36... Rd6 {[%clk 0:00:07.8]} 37. Qxb7 {[%clk 0:00:45.2]} 37... a4
{[%clk 0:00:06.9]} 38. Qb4 {[%clk 0:00:41.3]} 38... Rd4 {[%clk 0:00:07]} 39. Qa3
{[%clk 0:00:39.2]} 39... e4 {[%clk 0:00:07]} 40. Bb5 {[%clk 0:00:37]} 40... Bb3
{[%clk 0:00:06.9]} 41. Rb1 {[%clk 0:00:33.9]} 41... Ne6 {[%clk 0:00:07]} 42.
Rxb3 {[%clk 0:00:32.7]} 42... axb3 {[%clk 0:00:06.7]} 43. Qxb3 {[%clk
0:00:33.6]} 43... Kf7 {[%clk 0:00:06.2]} 44. Bc4 {[%clk 0:00:32.4]} 44... Rd6
{[%clk 0:00:06.1]} 45. Qb7+ {[%clk 0:00:29.1]} 45... Kf6 {[%clk 0:00:06.5]} 46.
Qxe4 {[%clk 0:00:28.9]} 46... Nd4 {[%clk 0:00:04.3]} 47. Qf4+ {[%clk 0:00:22]}
47... Ke7 {[%clk 0:00:04.7]} 48. Qf7+ {[%clk 0:00:20.1]} 1-0

[Event "*** SCC Grand Prix: Titled Tuesday Blitz"]
[Site "Chess.com"]
[Date "2020.08.25"]
[Round "3"]
[White "ChessyInstinct"]
[Black "MariaFominykh"]
[Result "0-1"]
[WhiteElo "2494"]
[BlackElo "2305"]
[TimeControl "180+1"]
[EndTime "10:30:42 PDT"]
[Termination "MariaFominykh won by checkmate"]

1. d4 {[%clk 0:03:00.9]} 1... Nf6 {[%clk 0:02:58.7]} 2. c4 {[%clk 0:02:58.9]}
2... g6 {[%clk 0:02:58.7]} 3. Nc3 {[%clk 0:02:57.6]} 3... Bg7 {[%clk 0:02:58.2]}
4. e4 {[%clk 0:02:56.9]} 4... d6 {[%clk 0:02:57.6]} 5. Be2 {[%clk 0:02:57.4]}
5... O-O {[%clk 0:02:56.4]} 6. Be3 {[%clk 0:02:57.6]} 6... e5 {[%clk 0:02:54.6]}
7. d5 {[%clk 0:02:55.1]} 7... c6 {[%clk 0:02:51]} 8. Nf3 {[%clk 0:02:52.4]} 8...
cxd5 {[%clk 0:02:35.4]} 9. cxd5 {[%clk 0:02:48.8]} 9... Ng4 {[%clk 0:02:34]} 10.
Bg5 {[%clk 0:02:48.8]} 10... Qb6 {[%clk 0:02:28.7]} 11. O-O {[%clk 0:02:48.5]}
11... h6 {[%clk 0:02:12.5]} 12. Bd2 {[%clk 0:02:37.1]} 12... Bd7 {[%clk
0:01:47.2]} 13. Na4 {[%clk 0:02:05.7]} 13... Qd8 {[%clk 0:01:35.6]} 14. Bb4
{[%clk 0:01:34.5]} 14... b5 {[%clk 0:01:15.7]} 15. Nc3 {[%clk 0:01:34.3]} 15...
Qb6 {[%clk 0:01:15.3]} 16. Nb1 {[%clk 0:00:58.4]} 16... Na6 {[%clk 0:01:05.1]}
17. Bd2 {[%clk 0:00:56.5]} 17... Nc5 {[%clk 0:00:59.6]} 18. Qc2 {[%clk
0:00:36.5]} 18... Rac8 {[%clk 0:00:52.5]} 19. b4 {[%clk 0:00:33]} 19... Nxe4
{[%clk 0:00:35.6]} 20. Qb3 {[%clk 0:00:20]} 20... Nxd2 {[%clk 0:00:31.7]} 21.
Nbxd2 {[%clk 0:00:20.9]} 21... e4 {[%clk 0:00:28.7]} 22. Nxe4 {[%clk 0:00:07.1]}
22... Bxa1 {[%clk 0:00:29.1]} 23. Rxa1 {[%clk 0:00:08]} 23... f5 {[%clk
0:00:26.4]} 24. Ng3 {[%clk 0:00:01.8]} 24... Qxf2+ {[%clk 0:00:26.1]} 25. Kh1
{[%clk 0:00:02.3]} 25... Ne3 {[%clk 0:00:20.7]} 26. Rg1 {[%clk 0:00:01.7]} 26...
f4 {[%clk 0:00:18.2]} 27. Ne4 {[%clk 0:00:02.3]} 27... Qxe2 {[%clk 0:00:17.6]}
28. Nxd6 {[%clk 0:00:01.7]} 28... Rc2 {[%clk 0:00:13.7]} 29. Ne4 {[%clk
0:00:02]} 29... Qc4 {[%clk 0:00:11]} 30. d6 {[%clk 0:00:02.9]} 30... Qxb3 {[%clk
0:00:10.5]} 31. axb3 {[%clk 0:00:03.8]} 31... Nf5 {[%clk 0:00:08.2]} 32. h3
{[%clk 0:00:03.4]} 32... Bc6 {[%clk 0:00:08]} 33. Kh2 {[%clk 0:00:03.5]} 33...
Bxe4 {[%clk 0:00:06.9]} 34. Rf1 {[%clk 0:00:04.4]} 34... Bxf3 {[%clk 0:00:06.7]}
35. Rxf3 {[%clk 0:00:05.3]} 35... Nxd6 {[%clk 0:00:06.8]} 36. Rd3 {[%clk
0:00:05.9]} 36... Ne4 {[%clk 0:00:06.5]} 37. h4 {[%clk 0:00:06.2]} 37... f3
{[%clk 0:00:06.6]} 38. Rd7 {[%clk 0:00:05.2]} 38... Rxg2+ {[%clk 0:00:05.6]} 39.
Kh3 {[%clk 0:00:05.8]} 39... Rg3+ {[%clk 0:00:05.3]} 40. Kh2 {[%clk 0:00:06.1]}
40... f2 {[%clk 0:00:05.2]} 41. h5 {[%clk 0:00:05.6]} 41... f1=Q {[%clk
0:00:03.1]} 42. Rg7+ {[%clk 0:00:02.3]} 42... Kxg7 {[%clk 0:00:02.5]} 43. hxg6
{[%clk 0:00:03.2]} 43... Qg2# {[%clk 0:00:02.6]} 0-1

[Event "*** SCC Grand Prix: Titled Tuesday Blitz"]
[Site "Chess.com"]
[Date "2020.08.25"]
[Round "3"]
[White "Phenix2k"]
[Black "fianchettoer"]
[Result "0-1"]
[WhiteElo "2098"]
[BlackElo "2459"]
[TimeControl "180+1"]
[EndTime "10:30:42 PDT"]
[Termination "fianchettoer won by resignation"]

1. d4 {[%clk 0:03:00.9]} 1... Nf6 {[%clk 0:02:59.9]} 2. c4 {[%clk 0:03:00]} 2...
g6 {[%clk 0:03:00.4]} 3. Nc3 {[%clk 0:02:59.8]} 3... d5 {[%clk 0:03:00.2]} 4.
cxd5 {[%clk 0:02:59.9]} 4... Nxd5 {[%clk 0:03:01.1]} 5. e4 {[%clk 0:03:00.1]}
5... Nxc3 {[%clk 0:03:01.6]} 6. bxc3 {[%clk 0:03:01]} 6... Bg7 {[%clk
0:03:02.2]} 7. Be3 {[%clk 0:03:01.3]} 7... c5 {[%clk 0:03:00.9]} 8. Nf3 {[%clk
0:03:01.2]} 8... O-O {[%clk 0:02:55.4]} 9. Qd2 {[%clk 0:03:00.7]} 9... Nd7
{[%clk 0:02:53.8]} 10. h4 {[%clk 0:02:59.4]} 10... e5 {[%clk 0:02:52.2]} 11. d5
{[%clk 0:02:55.3]} 11... Nf6 {[%clk 0:02:52.4]} 12. Bd3 {[%clk 0:02:37.4]} 12...
b6 {[%clk 0:02:49.9]} 13. Bh6 {[%clk 0:02:18.8]} 13... Re8 {[%clk 0:02:33.4]}
14. Bxg7 {[%clk 0:02:17.5]} 14... Kxg7 {[%clk 0:02:33.9]} 15. Qg5 {[%clk
0:02:08.2]} 15... h6 {[%clk 0:02:33]} 16. Qd2 {[%clk 0:01:58.7]} 16... Bg4
{[%clk 0:02:31.7]} 17. Nh2 {[%clk 0:01:28.2]} 17... Bd7 {[%clk 0:02:31.4]} 18.
f3 {[%clk 0:01:26.5]} 18... Nh5 {[%clk 0:02:28.8]} 19. Nf1 {[%clk 0:01:24]}
19... b5 {[%clk 0:02:26.1]} 20. g3 {[%clk 0:01:22]} 20... a5 {[%clk 0:02:24.9]}
21. a3 {[%clk 0:01:20.3]} 21... c4 {[%clk 0:02:19]} 22. Be2 {[%clk 0:01:18.6]}
22... Qf6 {[%clk 0:02:07.8]} 23. Kf2 {[%clk 0:01:16.1]} 23... Rab8 {[%clk
0:01:55.5]} 24. Ne3 {[%clk 0:01:14.7]} 24... Qb6 {[%clk 0:01:49.4]} 25. Kg2
{[%clk 0:01:13]} 25... Rec8 {[%clk 0:01:38.4]} 26. Rhb1 {[%clk 0:01:11.1]} 26...
Qc5 {[%clk 0:01:33.4]} 27. Nc2 {[%clk 0:01:04.8]} 27... Nf6 {[%clk 0:01:29.2]}
28. Qe3 {[%clk 0:01:01.9]} 28... Qxe3 {[%clk 0:01:21.9]} 29. Nxe3 {[%clk
0:01:01.9]} 29... Ne8 {[%clk 0:01:22.8]} 30. Nc2 {[%clk 0:00:54.5]} 30... Nd6
{[%clk 0:01:22.7]} 31. Rb2 {[%clk 0:00:53.7]} 31... f5 {[%clk 0:01:22.5]} 32.
exf5 {[%clk 0:00:49.8]} 32... gxf5 {[%clk 0:01:21.4]} 33. Rab1 {[%clk
0:00:48.7]} 33... Ra8 {[%clk 0:01:16]} 34. a4 {[%clk 0:00:44.1]} 34... b4 {[%clk
0:00:51.7]} 35. cxb4 {[%clk 0:00:40.2]} 35... c3 {[%clk 0:00:52]} 36. Ra2 {[%clk
0:00:39.7]} 36... axb4 {[%clk 0:00:50.7]} 37. Rxb4 {[%clk 0:00:38.4]} 37... Rc5
{[%clk 0:00:48.4]} 38. Rb6 {[%clk 0:00:31.1]} 38... Rxd5 {[%clk 0:00:32.5]} 39.
Ne3 {[%clk 0:00:29.7]} 39... Rd4 {[%clk 0:00:33]} 40. Rxd6 {[%clk 0:00:29.3]}
40... Rxd6 {[%clk 0:00:32.6]} 41. a5 {[%clk 0:00:25.6]} 41... Rd2 {[%clk
0:00:30.4]} 42. Rxd2 {[%clk 0:00:25.2]} 42... cxd2 {[%clk 0:00:31.3]} 43. a6
{[%clk 0:00:25.4]} 43... f4 {[%clk 0:00:25]} 44. Nd1 {[%clk 0:00:20.9]} 44...
Ba4 {[%clk 0:00:24.7]} 45. Nb2 {[%clk 0:00:19.5]} 45... d1=Q {[%clk 0:00:21.6]}
46. Nxd1 {[%clk 0:00:18.4]} 46... Bxd1 {[%clk 0:00:22.2]} 47. Bxd1 {[%clk
0:00:17.6]} 47... Rxa6 {[%clk 0:00:22.6]} 48. gxf4 {[%clk 0:00:15.8]} 48... exf4
{[%clk 0:00:23.5]} 49. h5 {[%clk 0:00:15.8]} 49... Ra1 {[%clk 0:00:23.1]} 50.
Bb3 {[%clk 0:00:15.1]} 50... Kf6 {[%clk 0:00:23.7]} 51. Kh3 {[%clk 0:00:13.7]}
51... Kg5 {[%clk 0:00:24.6]} 52. Bf7 {[%clk 0:00:12.2]} 52... Ra3 {[%clk
0:00:25.5]} 53. Kg2 {[%clk 0:00:12.4]} 53... Re3 {[%clk 0:00:26.3]} 54. Kf2
{[%clk 0:00:11.9]} 54... Kh4 {[%clk 0:00:26.5]} 55. Kg2 {[%clk 0:00:11.6]} 55...
Re2+ {[%clk 0:00:26.2]} 56. Kf1 {[%clk 0:00:11.7]} 56... Rd2 {[%clk 0:00:26.8]}
0-1

[Event "*** SCC Grand Prix: Titled Tuesday Blitz"]
[Site "Chess.com"]
[Date "2020.08.25"]
[Round "3"]
[White "alfiefischer77"]
[Black "JRenatoMaranhao"]
[Result "1-0"]
[WhiteElo "2292"]
[BlackElo "2049"]
[TimeControl "180+1"]
[EndTime "10:30:43 PDT"]
[Termination "alfiefischer77 won by checkmate"]

1. e4 {[%clk 0:03:00.9]} 1... c6 {[%clk 0:02:58.8]} 2. d4 {[%clk 0:03:00.6]}
2... d5 {[%clk 0:02:58.4]} 3. exd5 {[%clk 0:03:01.5]} 3... cxd5 {[%clk 0:02:59]}
4. c4 {[%clk 0:03:01.8]} 4... Nf6 {[%clk 0:02:59]} 5. Nc3 {[%clk 0:03:02.1]}
5... e6 {[%clk 0:02:57.8]} 6. Nf3 {[%clk 0:03:01]} 6... Bb4 {[%clk 0:02:57.8]}
7. cxd5 {[%clk 0:02:59.2]} 7... Nxd5 {[%clk 0:02:56.7]} 8. Bd2 {[%clk
0:02:59.2]} 8... O-O {[%clk 0:02:38.9]} 9. Bd3 {[%clk 0:02:59.4]} 9... Nc6
{[%clk 0:02:37.4]} 10. O-O {[%clk 0:02:58.9]} 10... Nxc3 {[%clk 0:02:33.7]} 11.
bxc3 {[%clk 0:02:58.1]} 11... Be7 {[%clk 0:02:33.7]} 12. Qc2 {[%clk 0:02:53.3]}
12... h6 {[%clk 0:02:32]} 13. Rfe1 {[%clk 0:02:28.7]} 13... Bd7 {[%clk 0:02:28]}
14. Rab1 {[%clk 0:02:21.2]} 14... b6 {[%clk 0:02:25.1]} 15. c4 {[%clk
0:02:16.7]} 15... Rc8 {[%clk 0:02:24.8]} 16. Bh7+ {[%clk 0:01:49.7]} 16... Kh8
{[%clk 0:02:24.1]} 17. Qd3 {[%clk 0:01:31.4]} 17... f5 {[%clk 0:02:17.8]} 18.
Bg6 {[%clk 0:01:27.6]} 18... Bf6 {[%clk 0:02:03.7]} 19. d5 {[%clk 0:01:22.3]}
19... Ne7 {[%clk 0:01:58.3]} 20. dxe6 {[%clk 0:01:06.5]} 20... Bxe6 {[%clk
0:01:51]} 21. Qxd8 {[%clk 0:01:04.3]} 21... Rfxd8 {[%clk 0:01:45.7]} 22. Rxe6
{[%clk 0:00:59.9]} 22... Nxg6 {[%clk 0:01:43.9]} 23. Rc1 {[%clk 0:00:33.6]}
23... Ne5 {[%clk 0:01:26.9]} 24. Nxe5 {[%clk 0:00:19.6]} 24... Rxd2 {[%clk
0:01:24.9]} 25. a4 {[%clk 0:00:17.4]} 25... Bxe5 {[%clk 0:01:21.1]} 26. Rxe5
{[%clk 0:00:17.4]} 26... Rxc4 {[%clk 0:01:19.9]} 27. Rf1 {[%clk 0:00:16.9]}
27... Rxa4 {[%clk 0:01:17.4]} 28. Rxf5 {[%clk 0:00:17.1]} 28... Raa2 {[%clk
0:01:13.8]} 29. g3 {[%clk 0:00:16.8]} 29... a6 {[%clk 0:01:10.6]} 30. Rb1 {[%clk
0:00:16.6]} 30... b5 {[%clk 0:01:09.4]} 31. Rc1 {[%clk 0:00:17.2]} 31... Rdc2
{[%clk 0:01:04.1]} 32. Rd1 {[%clk 0:00:17.1]} 32... Rd2 {[%clk 0:01:03.1]} 33.
Rc1 {[%clk 0:00:17.2]} 33... b4 {[%clk 0:00:56.5]} 34. Rc7 {[%clk 0:00:13.8]}
34... a5 {[%clk 0:00:47]} 35. Rff7 {[%clk 0:00:13.7]} 35... b3 {[%clk
0:00:28.2]} 36. Rxg7 {[%clk 0:00:13.6]} 36... Rxf2 {[%clk 0:00:26.7]} 37. Rge7
{[%clk 0:00:07.2]} 37... Rg2+ {[%clk 0:00:15.7]} 38. Kf1 {[%clk 0:00:07.2]}
38... Raf2+ {[%clk 0:00:15.5]} 39. Ke1 {[%clk 0:00:07.5]} 39... Kg8 {[%clk
0:00:05.7]} 40. Rc8+ {[%clk 0:00:05.9]} 40... Rf8 {[%clk 0:00:05.1]} 41. Rcc7
{[%clk 0:00:06.4]} 41... Rff2 {[%clk 0:00:02.3]} 42. Rg7+ {[%clk 0:00:05.6]}
42... Kf8 {[%clk 0:00:02.4]} 43. Rh7 {[%clk 0:00:05.8]} 43... Ke8 {[%clk
0:00:02.3]} 44. Rc8# {[%clk 0:00:04.6]} 1-0